[Event "GER-ch Youth U10 2019"]
[Site "Willingen"]
[Date "2019.06.09"]
[Round "2.1"]
[White "Dordevic, Tom"]
[Black "Besou, Hussain"]
[Result "0-1"]
[ECO "C55"]
[WhiteElo "1158"]
[BlackElo "1785"]
[Annotator "NA"]
[PlyCount "98"]
[EventDate "2019.06.07"]
[EventType "swiss"]
[EventRounds "11"]
[EventCountry "GER"]
[SourceTitle "playchess.com"]
[Source "ChessBase"]
[SourceQuality "1"]
[TimeControl "40/4500+30:900+30"]

1. e4 {[%emt 0:00:00]} e5 {[%emt 0:00:00]} 2. Nf3 {[%emt 0:00:00]} Nc6 {[%emt 0:00:00]} 3. Bc4 {[%emt 0:00:00]} Nf6 {[%emt 0:00:00]} 4. d3 {[%emt 0:00:26]} Be7 {[%emt 0:00:30]} 5. O-O {[%emt 0:00:37]} O-O {[%emt 0:00:10]} 6. Re1 {[%emt 0:00:43]} d6 {[%emt 0:05:06]} 7. c3 {[%emt 0:01:22]} Bg4 {[%emt 0:02:49]} 8. Nbd2 {[%emt 0:05:02]} d5 {[%emt 0:06:00]} 9. exd5 {[%emt 0:00:47]} Nxd5 {[%emt 0:00:11]} 10. Nf1 {[%emt 0:03:38]} Kh8 {[%emt 0:01:05]} 11. h3 {[%emt 0:01:53]} Bh5 {[%emt 0:00:09]} 12. Ng3 {[%emt 0:01:28]} Bg6 {[%emt 0:00:06]} 13. Nxe5 {[%emt 0:04:39]} Nxe5 {[%emt 0:02:24]} 14. Rxe5 {[%emt 0:00:43]} Nb6 {[%emt 0:00:08]} 15. Re1 {[%emt 0:01:29]} Qd7 {[%emt 0:01:35]} 16. Qf3 {[%emt 0:07:37]} c6 {[%emt 0:00:49]} 17. Bf4 {[%emt 0:01:19]} Rad8 {[%emt 0:01:58]} 18. Rad1 {[%emt 0:02:04]} Na4 {[%emt 0:02:42]} 19. Bc1 {[%emt 0:05:17]} b5 {[%emt 0:03:18]} 20. Bb3 {[%emt 0:01:22]} Nc5 {[%emt 0:00:08]} 21. d4 {[%emt 0:01:09]} Nxb3 {[%emt 0:00:17]} 22. axb3 {[%emt 0:00:07]} Bc2 {[%emt 0:00:07]} 23. Rd2 {[%emt 0:02:26]} Bxb3 {[%emt 0:00:08]} 24. Rde2 {[%emt 0:00:49]} Be6 {[%emt 0:06:21]} 25. Bf4 {[%emt 0:04:57]} Rfe8 26. Ne4 {[%emt 0:03:16]} Bd5 {[%emt 0:07:23]} 27. Qg3 {[%emt 0:02:08]} Bf8 {[%emt 0:12:37]} 28. Bg5 {[%emt 0:09:39]} Be7 {[%emt 0:00:51]} 29. Nc5 {[%emt 0:01:09]} Bxc5 {[%emt 0:07:14]} 30. Bxd8 {[%emt 0:00:10]} Rxe2 {[%emt 0:00:14]} 31. Rxe2 {[%emt 0:00:11]} Bf8 {[%emt 0:02:03]} 32. Qc7 {[%emt 0:01:24]} Qxc7 {[%emt 0:00:40]} 33. Bxc7 {[%emt 0:00:07]} Be6 {[%emt 0:00:57]} 34. f4 {[%emt 0:01:18]} g6 {[%emt 0:01:25]} 35. Be5+ Kg8 {[%emt 0:00:08]} 36. Bc7 {[%emt 0:01:39]} h5 {[%emt 0:01:56]} 37. Re1 {[%emt 0:00:57]} a6 {[%emt 0:05:01]} 38. Ra1 {[%emt 0:01:24]} Bc8 {[%emt 0:00:43]} 39. Kf2 {[%emt 0:01:15]} f6 {[%emt 0:00:19]} 40. Ke2 {[%emt 0:00:45]} Kf7 {[%emt 0:00:43]} 41. Kd2 {[%emt 0:15:17]} Bb7 {[%emt 0:17:04]} 42. Bb6 {[%emt 0:02:30]} Bd6 {[%emt 0:01:04]} 43. Ke3 {[%emt 0:00:38]} Ke6 {[%emt 0:01:48]} 44. Bc5 {[%emt 0:00:50]} Bc7 {[%emt 0:00:09]} 45. Kf3 {[%emt 0:01:05]} Bd8 {[%emt 0:00:30]} 46. Re1+ {[%emt 0:00:46]} Kf7 {[%emt 0:00:32]} 47. g4 {[%emt 0:01:56]} Bc8 {[%emt 0:01:37]} 48. Rh1 {[%emt 0:04:26]} Be6 {[%emt 0:00:22]} 49. Kg3 {[%emt 0:01:10]} Bd5 {[%emt 0:00:30] normal} 0-1

[Event "GER-ch Youth U10 2019"]
[Site "Willingen"]
[Date "2019.06.09"]
[Round "2.2"]
[White "Scheerer, Julian"]
[Black "Helms, Finn"]
[Result "0-1"]
[ECO "C01"]
[WhiteElo "1395"]
[BlackElo "1773"]
[Annotator "NA"]
[PlyCount "66"]
[EventDate "2019.06.07"]
[EventType "swiss"]
[EventRounds "11"]
[EventCountry "GER"]
[SourceTitle "playchess.com"]
[Source "ChessBase"]
[SourceQuality "1"]
[TimeControl "40/4500+30:900+30"]

1. e4 {[%emt 0:00:00]} e6 {[%emt 0:00:00]} 2. d4 {[%emt 0:00:00]} d5 {[%emt 0:00:00]} 3. exd5 {[%emt 0:00:17]} exd5 {[%emt 0:00:00]} 4. Bd3 {[%emt 0:00:21]} Bd6 {[%emt 0:00:00]} 5. Ne2 {[%emt 0:01:06]} Ne7 {[%emt 0:00:06]} 6. O-O {[%emt 0:00:49]} O-O {[%emt 0:00:21]} 7. c3 {[%emt 0:00:42]} Bf5 {[%emt 0:00:11]} 8. Re1 {[%emt 0:01:10]} c6 {[%emt 0:00:27]} 9. Bf4 {[%emt 0:00:40]} Re8 {[%emt 0:01:03]} 10. Nd2 {[%emt 0:01:11]} Bxd3 {[%emt 0:00:08]} 11. Bxd6 {[%emt 0:01:57]} Qxd6 {[%emt 0:00:35]} 12. Ng3 {[%emt 0:00:53]} Nd7 {[%emt 0:00:47]} 13. Re3 {[%emt 0:01:14]} Bg6 {[%emt 0:00:33]} 14. Qe2 {[%emt 0:00:44]} f6 {[%emt 0:02:32]} 15. Re6 {[%emt 0:01:21]} Nf5 {[%emt 0:04:58]} 16. Rxe8+ {[%emt 0:05:33]} Rxe8 {[%emt 0:00:07]} 17. Nxf5 {[%emt 0:01:18]} Rxe2 {[%emt 0:00:04]} 18. Nxd6 {[%emt 0:00:40]} Rxd2 {[%emt 0:00:02]} 19. b3 {[%emt 0:04:27]} b6 {[%emt 0:01:19]} 20. Re1 {[%emt 0:01:52]} Rb2 {[%emt 0:02:42]} 21. f4 {[%emt 0:05:35]} Rb1 {[%emt 0:00:13]} 22. Kf2 {[%emt 0:01:20]} Rxe1 {[%emt 0:00:15]} 23. Kxe1 {[%emt 0:00:11]} Be4 {[%emt 0:00:17]} 24. Kf2 {[%emt 0:00:53]} Bb1 {[%emt 0:00:26]} 25. a3 {[%emt 0:02:30]} a5 {[%emt 0:00:21]} 26. Ke3 {[%emt 0:01:02]} Kf8 {[%emt 0:00:07]} 27. Nc8 {[%emt 0:02:33]} b5 {[%emt 0:01:09]} 28. Kd2 {[%emt 0:03:30]} Kf7 {[%emt 0:02:08]} 29. g4 {[%emt 0:00:50]} g6 {[%emt 0:00:39]} 30. Kc1 {[%emt 0:00:50]} Be4 {[%emt 0:00:06]} 31. c4 {[%emt 0:01:44]} bxc4 {[%emt 0:01:30]} 32. bxc4 {[%emt 0:00:34]} Ke6 {[%emt 0:00:29]} 33. c5 {[%emt 0:00:49]} Bf3 {[%emt 0:01:28] normal} 0-1

[Event "GER-ch Youth U10 2019"]
[Site "Willingen"]
[Date "2019.06.09"]
[Round "2.3"]
[White "Xue, Luka"]
[Black "Sauer, Tim"]
[Result "0-1"]
[ECO "B13"]
[WhiteElo "1429"]
[BlackElo "1553"]
[Annotator "NA"]
[PlyCount "109"]
[EventDate "2019.06.07"]
[EventType "swiss"]
[EventRounds "11"]
[EventCountry "GER"]
[SourceTitle "playchess.com"]
[Source "ChessBase"]
[SourceQuality "1"]
[TimeControl "40/4500+30:900+30"]

1. e4 {[%emt 0:00:00]} c6 {[%emt 0:00:00]} 2. d4 {[%emt 0:00:00]} d5 {[%emt 0:00:00]} 3. exd5 {[%emt 0:00:00]} cxd5 {[%emt 0:00:00]} 4. Bd3 {[%emt 0:00:00]} Nc6 {[%emt 0:00:00]} 5. c3 {[%emt 0:00:00]} Nf6 {[%emt 0:00:00]} 6. Bf4 {[%emt 0:00:14]} Bg4 {[%emt 0:00:36]} 7. Qb3 {[%emt 0:00:11]} Qd7 {[%emt 0:00:50]} 8. Nd2 {[%emt 0:00:25]} e6 {[%emt 0:00:07]} 9. Ngf3 {[%emt 0:00:09]} Bxf3 {[%emt 0:11:14]} 10. Nxf3 {[%emt 0:00:47]} Nh5 {[%emt 0:03:56]} 11. Ne5 {[%emt 0:01:40]} Nxe5 {[%emt 0:04:09]} 12. Bxe5 {[%emt 0:00:35]} a6 {[%emt 0:00:22]} 13. O-O {[%emt 0:01:23]} Be7 {[%emt 0:00:24]} 14. a4 {[%emt 0:01:31]} O-O {[%emt 0:02:23]} 15. Rae1 {[%emt 0:03:17]} Bd6 {[%emt 0:04:02]} 16. Bb1 {[%emt 0:00:52]} f6 {[%emt 0:03:53]} 17. Bxd6 {[%emt 0:00:44]} Qxd6 {[%emt 0:00:19]} 18. Qc2 {[%emt 0:00:31]} g6 {[%emt 0:01:58]} 19. Re3 {[%emt 0:01:34]} Rae8 {[%emt 0:03:44]} 20. Rh3 {[%emt 0:04:20]} Nf4 {[%emt 0:02:49]} 21. Rh4 {[%emt 0:02:52]} f5 {[%emt 0:01:13]} 22. g3 {[%emt 0:02:09]} g5 {[%emt 0:00:25]} 23. Rg4 {[%emt 0:00:55]} Nh3+ {[%emt 0:00:39]} 24. Kg2 {[%emt 0:00:36]} h5 {[%emt 0:00:09]} 25. Rh4 {[%emt 0:02:44]} Nf4+ {[%emt 0:07:47]} 26. gxf4 {[%emt 0:02:19]} gxh4 {[%emt 0:00:12]} 27. Qd2 {[%emt 0:01:31]} Kh7 {[%emt 0:01:31]} 28. h3 {[%emt 0:04:43]} Rg8+ {[%emt 0:00:31]} 29. Kf3 {[%emt 0:00:11]} Qe7 {[%emt 0:03:20]} 30. Qe2 {[%emt 0:01:09]} Qg7 {[%emt 0:01:26]} 31. Ke3 {[%emt 0:00:50]} Kh6 {[%emt 0:00:19]} 32. Bc2 {[%emt 0:00:47]} Qg2 {[%emt 0:00:31]} 33. Bd1 {[%emt 0:01:43]} Qe4+ {[%emt 0:02:32]} 34. Kd2 {[%emt 0:00:10]} Qxf4+ {[%emt 0:00:18]} 35. Qe3 {[%emt 0:01:29]} Qxe3+ {[%emt 0:00:28]} 36. Kxe3 Kg6 {[%emt 0:06:36]} 37. Kf4 {[%emt 0:01:17]} Kf6 {[%emt 0:01:24]} 38. Bxh5 Re7 {[%emt 0:01:21]} 39. Bf3 {[%emt 0:01:22]} Reg7 {[%emt 0:00:48]} 40. b3 {[%emt 0:01:07]} Rg1 {[%emt 0:00:22]} 41. Rxg1 {[%emt 0:15:30]} Rxg1 {[%emt 0:15:32]} 42. c4 {[%emt 0:00:14]} dxc4 {[%emt 0:02:10]} 43. bxc4 {[%emt 0:00:16]} Rc1 {[%emt 0:02:08]} 44. c5 {[%emt 0:00:27]} Rc4 {[%emt 0:00:37]} 45. Ke3 {[%emt 0:00:20]} e5 {[%emt 0:07:38]} 46. dxe5+ {[%emt 0:01:01]} Kxe5 {[%emt 0:00:21]} 47. Bxb7 {[%emt 0:00:22]} Rxa4 {[%emt 0:02:16]} 48. c6 {[%emt 0:02:04]} Ra3+ {[%emt 0:05:31]} 49. Kd2 {[%emt 0:00:24]} Kd6 {[%emt 0:00:35]} 50. Bc8 {[%emt 0:00:55]} Rxh3 {[%emt 0:00:00]} 51. Bxa6 {[%emt 0:00:00]} Kxc6 {[%emt 0:00:00]} 52. Bc8 {[%emt 0:00:00]} Rh2 {[%emt 0:00:00]} 53. Ke2 {[%emt 0:00:00]} Kd5 {[%emt 0:00:00]} 54. Bxf5 {[%emt 0:00:00]} Ke5 {[%emt 0:00:06]} 55. Bd7 {[%emt 0:00:00] normal} 0-1

[Event "GER-ch Youth U10 2019"]
[Site "Willingen"]
[Date "2019.06.09"]
[Round "2.4"]
[White "Haubold, Sebastian Marcel"]
[Black "Jouani, Zakharia"]
[Result "1-0"]
[ECO "B43"]
[WhiteElo "1506"]
[BlackElo "1507"]
[Annotator "NA"]
[PlyCount "96"]
[EventDate "2019.06.07"]
[EventType "swiss"]
[EventRounds "11"]
[EventCountry "GER"]
[SourceTitle "playchess.com"]
[Source "ChessBase"]
[SourceQuality "1"]
[TimeControl "40/4500+30:900+30"]

1. e4 {[%emt 0:00:00]} c5 {[%emt 0:00:13]} 2. Nf3 {[%emt 0:00:44]} e6 {[%emt 0:00:51]} 3. d4 {[%emt 0:02:09]} cxd4 {[%emt 0:01:03]} 4. Nxd4 {[%emt 0:01:26]} a6 {[%emt 0:01:28]} 5. Nc3 {[%emt 0:01:05]} Qc7 {[%emt 0:00:29]} 6. Bd3 {[%emt 0:04:00]} d6 {[%emt 0:04:10]} 7. O-O {[%emt 0:03:30]} Nf6 {[%emt 0:00:39]} 8. Qf3 {[%emt 0:03:34]} Nbd7 {[%emt 0:02:14]} 9. Re1 {[%emt 0:05:10]} Be7 {[%emt 0:05:04]} 10. Be3 {[%emt 0:02:57]} O-O {[%emt 0:03:02]} 11. Qg3 {[%emt 0:04:18]} Kh8 {[%emt 0:02:52]} 12. f4 {[%emt 0:02:26]} b5 {[%emt 0:06:27]} 13. a3 {[%emt 0:06:43]} Bb7 {[%emt 0:03:08]} 14. Qh3 {[%emt 0:02:26]} Nc5 {[%emt 0:05:04]} 15. Bf2 e5 {[%emt 0:05:04]} 16. fxe5 {[%emt 0:05:29]} dxe5 {[%emt 0:01:52]} 17. Nf5 {[%emt 0:00:48]} Bc8 {[%emt 0:01:08]} 18. Qf3 {[%emt 0:02:52]} Nxd3 {[%emt 0:01:00]} 19. cxd3 {[%emt 0:00:54]} Bc5 {[%emt 0:03:01]} 20. d4 {[%emt 0:04:05]} exd4 {[%emt 0:03:13]} 21. Nxd4 {[%emt 0:01:31]} Ng4 {[%emt 0:01:57]} 22. Rad1 {[%emt 0:03:21]} Qxh2+ {[%emt 0:01:31]} 23. Kf1 {[%emt 0:03:59]} Ne5 {[%emt 0:03:37]} 24. Qg3 {[%emt 0:04:15]} Qh1+ {[%emt 0:03:22]} 25. Ke2 {[%emt 0:02:14]} Bg4+ {[%emt 0:03:54]} 26. Nf3 {[%emt 0:01:02]} Bxf2 {[%emt 0:01:59]} 27. Kxf2 {[%emt 0:00:43]} Qh5 {[%emt 0:03:34]} 28. Rh1 {[%emt 0:01:09]} Qg6 {[%emt 0:01:16]} 29. Qxe5 {[%emt 0:00:54]} Qb6+ {[%emt 0:01:46]} 30. Qd4 {[%emt 0:00:47]} Qb8 {[%emt 0:00:35]} 31. e5 {[%emt 0:01:31]} Be6 {[%emt 0:01:53]} 32. Ng5 {[%emt 0:01:48]} Bf5 {[%emt 0:02:34]} 33. Nge4 {[%emt 0:01:47]} Rd8 {[%emt 0:01:00]} 34. Qxd8+ {[%emt 0:00:36]} Qxd8 {[%emt 0:00:22]} 35. Rxd8+ {[%emt 0:00:05]} Rxd8 {[%emt 0:00:24]} 36. Nd6 {[%emt 0:00:12]} Bg6 {[%emt 0:00:13]} 37. Rd1 {[%emt 0:00:13]} Kg8 {[%emt 0:00:42]} 38. Nd5 {[%emt 0:01:02]} h6 {[%emt 0:00:40]} 39. Ne7+ {[%emt 0:00:51]} Kf8 {[%emt 0:00:15]} 40. Nxg6+ {[%emt 0:00:41]} fxg6 {[%emt 0:00:06]} 41. Ke3 {[%emt 0:15:35]} Ke7 {[%emt 0:15:20]} 42. Ke4 {[%emt 0:00:50]} Ke6 {[%emt 0:00:21]} 43. Rf1 {[%emt 0:00:10]} h5 {[%emt 0:00:43]} 44. Rf4 {[%emt 0:00:58]} Rd7 {[%emt 0:00:42]} 45. Rf8 {[%emt 0:00:32]} Rc7 {[%emt 0:00:37]} 46. Rc8 {[%emt 0:00:22]} Rxc8 {[%emt 0:00:28]} 47. Nxc8 g5 {[%emt 0:00:09]} 48. Nd6 {[%emt 0:03:06]} g4 {[%emt 0:00:10] normal} 1-0

[Event "GER-ch Youth U10 2019"]
[Site "Willingen"]
[Date "2019.06.09"]
[Round "2.5"]
[White "Fietz, Nils"]
[Black "Navarro Jahnke, Leo"]
[Result "1-0"]
[ECO "B22"]
[WhiteElo "1677"]
[BlackElo "1334"]
[Annotator "NA"]
[PlyCount "61"]
[EventDate "2019.06.07"]
[EventType "swiss"]
[EventRounds "11"]
[EventCountry "GER"]
[SourceTitle "playchess.com"]
[Source "ChessBase"]
[SourceQuality "1"]
[TimeControl "40/4500+30:900+30"]

1. e4 {[%emt 0:00:00]} c5 {[%emt 0:00:00]} 2. c3 {[%emt 0:00:00]} Nf6 {[%emt 0:00:20]} 3. e5 {[%emt 0:00:11]} Nd5 {[%emt 0:00:07]} 4. d4 {[%emt 0:00:37]} Nc6 5. Nf3 {[%emt 0:00:36]} e6 {[%emt 0:01:22]} 6. Bc4 {[%emt 0:01:10]} Nc7 {[%emt 0:01:14]} 7. O-O {[%emt 0:00:52]} d5 {[%emt 0:00:08]} 8. exd6 {[%emt 0:02:49]} Bxd6 {[%emt 0:00:36]} 9. dxc5 {[%emt 0:00:38]} Bxc5 {[%emt 0:00:36]} 10. Qxd8+ {[%emt 0:00:10]} Nxd8 {[%emt 0:00:37]} 11. Rd1 {[%emt 0:01:41]} O-O {[%emt 0:00:37]} 12. Bf4 {[%emt 0:00:21]} Na6 {[%emt 0:01:50]} 13. Nbd2 {[%emt 0:01:21]} Rb8 {[%emt 0:02:28]} 14. Bxa6 {[%emt 0:00:58]} Ra8 {[%emt 0:00:27]} 15. Bc4 {[%emt 0:00:58]} a6 {[%emt 0:00:08]} 16. Ne4 {[%emt 0:00:41]} Be7 {[%emt 0:00:16]} 17. Nd6 {[%emt 0:00:44]} b5 {[%emt 0:00:26]} 18. Bb3 {[%emt 0:00:26]} Nc6 {[%emt 0:00:47]} 19. Nxc8 {[%emt 0:02:03]} Raxc8 {[%emt 0:00:30]} 20. Bd6 {[%emt 0:00:36]} Rfe8 {[%emt 0:01:20]} 21. Bxe7 {[%emt 0:00:28]} Rxe7 {[%emt 0:00:37]} 22. Nd4 Na5 {[%emt 0:01:20]} 23. Bc2 {[%emt 0:00:54]} Nc4 {[%emt 0:00:05]} 24. b3 {[%emt 0:01:59]} Na3 {[%emt 0:00:16]} 25. Rac1 {[%emt 0:01:01]} Kf8 {[%emt 0:00:20]} 26. Bd3 {[%emt 0:01:02]} Rec7 {[%emt 0:01:14]} 27. c4 {[%emt 0:01:59]} bxc4 {[%emt 0:00:09]} 28. bxc4 {[%emt 0:00:32]} Rc5 {[%emt 0:00:20]} 29. Nb3 R5c6 {[%emt 0:00:46]} 30. c5 {[%emt 0:06:14]} f5 {[%emt 0:00:56]} 31. Nd4 {[%emt 0:00:37] normal} 1-0

[Event "GER-ch Youth U10 2019"]
[Site "Willingen"]
[Date "2019.06.09"]
[Round "2.6"]
[White "Kullmann, Theo"]
[Black "Grabs, Peter"]
[Result "0-1"]
[ECO "C05"]
[WhiteElo "1465"]
[BlackElo "1575"]
[Annotator "NA"]
[PlyCount "83"]
[EventDate "2019.06.07"]
[EventType "swiss"]
[EventRounds "11"]
[EventCountry "GER"]
[SourceTitle "playchess.com"]
[Source "ChessBase"]
[SourceQuality "1"]
[TimeControl "40/4500+30:900+30"]

1. e4 {[%emt 0:00:00]} e6 {[%emt 0:00:00]} 2. d4 {[%emt 0:00:00]} d5 {[%emt 0:00:00]} 3. Nd2 {[%emt 0:00:00]} Nf6 {[%emt 0:00:00]} 4. e5 {[%emt 0:00:00]} Nfd7 {[%emt 0:00:00]} 5. f4 {[%emt 0:00:04]} c5 {[%emt 0:00:00]} 6. c3 {[%emt 0:00:06]} Nc6 {[%emt 0:00:05]} 7. Ndf3 {[%emt 0:00:21]} cxd4 {[%emt 0:00:06]} 8. cxd4 {[%emt 0:00:06]} a5 {[%emt 0:00:04]} 9. a3 {[%emt 0:00:50]} a4 {[%emt 0:00:13]} 10. Bd3 {[%emt 0:00:27]} Nb6 {[%emt 0:00:29]} 11. Ne2 {[%emt 0:00:15]} Be7 {[%emt 0:00:50]} 12. Nc3 {[%emt 0:00:53]} Bd7 {[%emt 0:00:15]} 13. O-O {[%emt 0:00:17]} Na5 {[%emt 0:00:33]} 14. Re1 {[%emt 0:01:13]} Nb3 {[%emt 0:02:25]} 15. Rb1 {[%emt 0:00:31]} Rc8 {[%emt 0:01:11]} 16. Bc2 {[%emt 0:01:53]} Nxc1 {[%emt 0:02:28]} 17. Rxc1 {[%emt 0:01:39]} Bxa3 {[%emt 0:05:45]} 18. Nxa4 {[%emt 0:06:03]} Rxc2 {[%emt 0:09:24]} 19. Qxc2 {[%emt 0:02:09]} Bxa4 {[%emt 0:00:29]} 20. Qc3 {[%emt 0:02:15]} Be7 {[%emt 0:01:14]} 21. b3 {[%emt 0:06:41]} Bd7 {[%emt 0:03:54]} 22. Ra1 {[%emt 0:03:11]} O-O {[%emt 0:02:37]} 23. Ra7 {[%emt 0:01:23]} Bc6 {[%emt 0:00:31]} 24. Rea1 {[%emt 0:00:58]} Qd7 {[%emt 0:02:48]} 25. Rc1 {[%emt 0:09:29]} Rc8 {[%emt 0:02:24]} 26. Qa5 {[%emt 0:03:46]} Bd8 {[%emt 0:00:22]} 27. Qb4 {[%emt 0:01:10]} Qe7 {[%emt 0:05:38]} 28. Qxe7 {[%emt 0:00:48]} Bxe7 {[%emt 0:00:08]} 29. g4 {[%emt 0:01:15]} Kf8 {[%emt 0:01:11]} 30. h4 {[%emt 0:01:51]} Ke8 {[%emt 0:00:37]} 31. Ng5 {[%emt 0:01:05]} h6 {[%emt 0:00:46]} 32. Nh7 {[%emt 0:01:39]} Bxh4 {[%emt 0:03:59]} 33. g5 {[%emt 0:03:23]} hxg5 {[%emt 0:00:25]} 34. fxg5 {[%emt 0:00:11]} Ke7 {[%emt 0:00:16]} 35. Kg2 {[%emt 0:04:46]} f6 {[%emt 0:04:38]} 36. g6 {[%emt 0:03:34]} fxe5 {[%emt 0:09:34]} 37. dxe5 {[%emt 0:00:15]} d4+ {[%emt 0:05:35]} 38. Kh2 {[%emt 0:01:19]} Nd7 {[%emt 0:00:27]} 39. Ra5 {[%emt 0:08:31]} d3 {[%emt 0:07:57]} 40. Rd1 {[%emt 0:03:24]} b6 {[%emt 0:09:05]} 41. Ra7 {[%emt 0:16:53]} Be4 {[%emt 0:16:35]} 42. Ra4 {[%emt 0:00:58] normal} 0-1

[Event "GER-ch Youth U10 2019"]
[Site "Willingen"]
[Date "2019.06.09"]
[Round "2.7"]
[White "Haubold, Christian Lucas"]
[Black "Kullmann, Max"]
[Result "1/2-1/2"]
[ECO "B01"]
[WhiteElo "1387"]
[BlackElo "1455"]
[Annotator "NA"]
[PlyCount "88"]
[EventDate "2019.06.07"]
[EventType "swiss"]
[EventRounds "11"]
[EventCountry "GER"]
[SourceTitle "playchess.com"]
[Source "ChessBase"]
[SourceQuality "1"]
[TimeControl "40/4500+30:900+30"]

1. e4 {[%emt 0:00:00]} d5 {[%emt 0:00:00]} 2. exd5 {[%emt 0:00:00]} Qxd5 {[%emt 0:00:00]} 3. Nc3 {[%emt 0:00:51]} Qa5 {[%emt 0:00:05]} 4. d4 {[%emt 0:02:37]} c6 {[%emt 0:00:17]} 5. Nf3 {[%emt 0:01:31]} Nf6 {[%emt 0:00:29]} 6. Bc4 {[%emt 0:01:29]} Bg4 {[%emt 0:00:52]} 7. O-O {[%emt 0:01:08]} e6 {[%emt 0:00:25]} 8. a3 {[%emt 0:01:16]} Bd6 {[%emt 0:00:43]} 9. h3 {[%emt 0:04:14]} Bh5 {[%emt 0:00:37]} 10. Be3 {[%emt 0:08:07]} Nbd7 {[%emt 0:03:30]} 11. Be2 {[%emt 0:10:36]} Qc7 {[%emt 0:21:00]} 12. b4 {[%emt 0:03:46]} O-O {[%emt 0:04:40]} 13. Qd2 {[%emt 0:02:47]} Rfe8 {[%emt 0:03:57]} 14. Ng5 {[%emt 0:05:04]} Bxe2 {[%emt 0:11:16]} 15. Nxe2 {[%emt 0:03:06]} h6 {[%emt 0:00:50]} 16. Nf3 {[%emt 0:00:19]} Ne4 {[%emt 0:03:24]} 17. Qd3 {[%emt 0:00:32]} Ndf6 {[%emt 0:01:30]} 18. c4 {[%emt 0:00:23]} b6 {[%emt 0:03:30]} 19. c5 {[%emt 0:02:03]} bxc5 {[%emt 0:01:00]} 20. dxc5 {[%emt 0:00:19]} Be5 {[%emt 0:03:36]} 21. Nxe5 {[%emt 0:00:15]} Qxe5 {[%emt 0:00:21]} 22. Bf4 {[%emt 0:02:11]} Qf5 {[%emt 0:04:46]} 23. Bd6 {[%emt 0:01:12]} Red8 {[%emt 0:03:38]} 24. Ng3 {[%emt 0:02:21]} Nxg3 {[%emt 0:01:35]} 25. Qxg3 {[%emt 0:00:43]} Ne4 {[%emt 0:00:53]} 26. Qh2 {[%emt 0:01:06]} Qg6 {[%emt 0:03:16]} 27. Qe5 {[%emt 0:04:54]} Nd2 {[%emt 0:00:43]} 28. Qc3 {[%emt 0:02:06]} Nxf1 {[%emt 0:00:29]} 29. Rxf1 {[%emt 0:00:11]} Qh5 {[%emt 0:03:07]} 30. Qc4 {[%emt 0:01:17]} Qd5 {[%emt 0:00:57]} 31. Qa6 {[%emt 0:00:34]} e5 {[%emt 0:03:25]} 32. Re1 {[%emt 0:01:50]} e4 {[%emt 0:00:51]} 33. Qe2 {[%emt 0:00:20]} Re8 {[%emt 0:00:33]} 34. Rd1 {[%emt 0:00:49]} Qf5 {[%emt 0:00:55]} 35. Qa6 {[%emt 0:01:22]} Qc8 {[%emt 0:00:45]} 36. Qe2 {[%emt 0:01:00]} a6 {[%emt 0:01:38]} 37. Rd4 {[%emt 0:00:29]} Qf5 {[%emt 0:00:34]} 38. Qc2 {[%emt 0:00:58]} Qg6 {[%emt 0:01:10]} 39. Qe2 Kh7 {[%emt 0:02:11]} 40. a4 {[%emt 0:01:34]} Ra7 {[%emt 0:01:01]} 41. b5 {[%emt 0:15:54]} axb5 {[%emt 0:01:59]} 42. axb5 {[%emt 0:00:00]} cxb5 {[%emt 0:00:56]} 43. Qxb5 {[%emt 0:00:00]} Ra1+ {[%emt 0:01:05]} 44. Kh2 {[%emt 0:00:00]} Qf6 {[%emt 0:00:50] normal} 1/2-1/2

[Event "GER-ch Youth U10 2019"]
[Site "Willingen"]
[Date "2019.06.09"]
[Round "2.8"]
[White "Arora, Abhiraaj"]
[Black "Meng, Yuxuan"]
[Result "1/2-1/2"]
[ECO "B40"]
[WhiteElo "1454"]
[BlackElo "1288"]
[Annotator "NA"]
[PlyCount "97"]
[EventDate "2019.06.07"]
[EventType "swiss"]
[EventRounds "11"]
[EventCountry "GER"]
[SourceTitle "playchess.com"]
[Source "ChessBase"]
[SourceQuality "1"]
[TimeControl "40/4500+30:900+30"]

1. e4 {[%emt 0:00:00]} c5 {[%emt 0:00:00]} 2. Nf3 {[%emt 0:00:00]} e6 {[%emt 0:00:00]} 3. d4 {[%emt 0:00:00]} cxd4 {[%emt 0:00:00]} 4. Nxd4 {[%emt 0:00:00]} Nf6 {[%emt 0:00:00]} 5. Nc3 {[%emt 0:00:00]} Nc6 {[%emt 0:00:00]} 6. Ndb5 {[%emt 0:02:37]} Bb4 {[%emt 0:00:14]} 7. a3 {[%emt 0:04:36]} Bxc3+ {[%emt 0:00:16]} 8. Nxc3 {[%emt 0:00:53]} d5 {[%emt 0:01:56]} 9. exd5 {[%emt 0:00:50]} exd5 {[%emt 0:00:47]} 10. Bg5 {[%emt 0:02:10]} d4 {[%emt 0:02:30]} 11. Nb5 {[%emt 0:01:19]} O-O {[%emt 0:03:15]} 12. Be2 {[%emt 0:02:35]} a6 {[%emt 0:01:23]} 13. Bxf6 {[%emt 0:01:35]} gxf6 {[%emt 0:00:30]} 14. Qd2 {[%emt 0:02:43]} axb5 {[%emt 0:00:29]} 15. Bxb5 {[%emt 0:02:25]} Re8+ {[%emt 0:00:38]} 16. Be2 {[%emt 0:00:07]} Bf5 {[%emt 0:00:12]} 17. O-O-O {[%emt 0:02:09]} Kh8 {[%emt 0:01:42]} 18. g4 {[%emt 0:01:17]} Be6 {[%emt 0:02:59]} 19. Qh6 {[%emt 0:03:50]} Bd5 {[%emt 0:02:39]} 20. Rhe1 {[%emt 0:01:19]} Rxe2 {[%emt 0:02:09]} 21. Rxe2 {[%emt 0:00:33]} Bf3 {[%emt 0:00:05]} 22. Red2 {[%emt 0:02:30]} Bxd1 {[%emt 0:00:22]} 23. Rxd1 {[%emt 0:01:38]} Qe7 {[%emt 0:05:16]} 24. h4 {[%emt 0:03:28]} Rg8 {[%emt 0:03:14]} 25. Rg1 {[%emt 0:00:50]} f5 {[%emt 0:02:40]} 26. g5 {[%emt 0:05:52]} Qe5 {[%emt 0:05:23]} 27. Kb1 {[%emt 0:02:13]} Qg7 {[%emt 0:10:27]} 28. Qh5 {[%emt 0:02:25]} Qg6 {[%emt 0:03:31]} 29. Qf3 {[%emt 0:01:10]} f6 {[%emt 0:01:36]} 30. h5 {[%emt 0:01:13]} Qg7 {[%emt 0:03:21]} 31. g6 {[%emt 0:02:43]} Qd7 {[%emt 0:04:42]} 32. Qf4 {[%emt 0:05:40]} hxg6 {[%emt 0:11:05]} 33. hxg6 {[%emt 0:01:40]} Kg7 {[%emt 0:00:20]} 34. Rh1 {[%emt 0:07:21]} Rh8 {[%emt 0:00:46]} 35. Rxh8 {[%emt 0:01:28]} Kxh8 {[%emt 0:00:10]} 36. Qh4+ {[%emt 0:00:08]} Kg8 {[%emt 0:01:33]} 37. Qxf6 {[%emt 0:00:40]} d3 {[%emt 0:05:33]} 38. cxd3 {[%emt 0:03:43]} Qxd3+ {[%emt 0:00:06]} 39. Ka1 {[%emt 0:00:40]} Qd1+ {[%emt 0:01:35]} 40. Ka2 {[%emt 0:00:13]} Qd5+ {[%emt 0:01:24]} 41. Kb1 {[%emt 0:15:25]} Qd7 {[%emt 0:16:56]} 42. Ka2 {[%emt 0:01:23]} Na5 {[%emt 0:01:04]} 43. g7 {[%emt 0:02:12]} Qf7+ {[%emt 0:00:59]} 44. Qxf7+ {[%emt 0:00:38]} Kxf7 {[%emt 0:00:06]} 45. b4 {[%emt 0:00:28]} Nc6 {[%emt 0:00:43]} 46. b5 {[%emt 0:00:10]} Na7 {[%emt 0:00:06]} 47. a4 {[%emt 0:00:20]} Kxg7 {[%emt 0:00:05]} 48. Kb3 {[%emt 0:00:46]} b6 {[%emt 0:00:54]} 49. Kc4 {[%emt 0:01:34] normal} 1/2-1/2